fUST/lending_fUST_20250519
["ID","MTS","AMOUNT","RATE_DAILY","PERIOD"]
[361646190,1747661446961,-500.0,0.00023835,4]
[361646191,1747661446971,-500.0,0.00023835,4]
[361646194,1747661446981,-961.24,0.00023835,4]
[361646195,1747661446994,-2801.27,0.00023835,4]
[361646198,1747661447005,-400.0,0.00023835,4]
[361646199,1747661447015,-430.0,0.00023835,4]
[361646200,1747661447025,-500.0,0.00023835,4]
[361646201,1747661447036,-405.32129881,0.00023835,4]
[361646202,1747661447046,-430.0,0.00023835,4]
[361646203,1747661447056,-430.0,0.00023835,4]
[361646204,1747661447065,-1351.03,0.00023835,4]
[361646205,1747661447075,-400.0,0.00023835,4]
[361646206,1747661447084,-430.0,0.00023835,4]
[361646207,1747661447094,-430.0,0.00023835,4]
[361646209,1747661447103,-303.18392996,0.00023835,4]
[361646211,1747661447113,-500.0,0.00023835,4]
[361646213,1747661447122,-1160.81,0.00023835,4]
[361646215,1747661447132,-2093.67,0.00023835,4]
[361646217,1747661447141,-450.0,0.00023835,4]
[361646219,1747661447150,-465.37,0.00023835,4]
[361646221,1747661447159,-500.0,0.00023835,4]
[361646223,1747661447170,-577.34041405,0.00023835,4]
[361646226,1747661447180,-400.0,0.00023835,4]
[361646228,1747661447189,-430.0,0.00023835,4]
[361646230,1747661447198,-911.96,0.00023835,4]
[361646232,1747661447208,-430.0,0.00023835,4]
[361646234,1747661447219,-430.0,0.00023835,4]
[361646236,1747661447228,-430.0,0.00023835,4]
[361646238,1747661447237,-809.22,0.00023835,4]
[361646240,1747661447249,-430.0,0.00023835,4]
[361646242,1747661447258,-430.0,0.00023835,4]
[361646244,1747661447267,-430.0,0.00023835,4]
[361646246,1747661447276,-430.0,0.00023835,4]
[361646248,1747661447285,-503.09872212,0.00023835,4]
[361646250,1747661447294,-430.0,0.00023835,4]
[361646252,1747661447303,-430.0,0.00023835,4]
[361646254,1747661447312,-430.0,0.00023835,4]
[361646256,1747661447321,-430.0,0.00023835,4]
[361646258,1747661447331,-3375.43,0.00023835,4]
[361646260,1747661447339,-694.1,0.00023835,4]
[361646262,1747661447348,-430.0,0.00023835,4]
[361646264,1747661447357,-1138.72,0.00023835,4]
[361646266,1747661447366,-513.22,0.00023835,4]
[361646268,1747661447375,-400.0,0.00023835,4]
[361646270,1747661447385,-430.0,0.00023835,4]
[361646272,1747661447394,-430.0,0.00023835,4]
[361646274,1747661447404,-400.0,0.00023835,4]
[361646287,1747661447525,-497.7,0.00023835,4]
[361646289,1747661447535,-501.60630409,0.00023835,4]
[361646291,1747661447545,-478.03,0.00023835,4]
[361646293,1747661447554,-430.0,0.00023835,4]
[361646295,1747661447564,-2722.38,0.00023835,4]
[361646297,1747661447573,-358.0,0.00023835,4]
[361646300,1747661447583,-400.0,0.00023835,4]
[361646302,1747661447592,-430.0,0.00023835,4]
[361646304,1747661447602,-430.0,0.00023835,4]
[361646306,1747661447611,-430.0,0.00023835,4]
[361646308,1747661447620,-430.0,0.00023835,4]
[361646309,1747661447629,-450.0,0.00023835,4]
[361646311,1747661447637,-280.76133008,0.00023835,4]
[361646313,1747661447647,-861.14,0.00023835,4]
[361646316,1747661447656,-430.0,0.00023835,4]
[361646318,1747661447665,-529.14,0.00023835,4]
[361646320,1747661447674,-430.0,0.00023835,4]
[361646321,1747661447683,-400.0,0.00023835,4]
[361646323,1747661447693,-430.0,0.00023835,4]
[361646326,1747661447702,-430.0,0.00023835,4]
[361646328,1747661447713,-430.0,0.00023835,4]
[361646329,1747661447724,-450.0,0.00023835,4]
[361646332,1747661447735,-430.0,0.00023835,4]
[361646334,1747661447747,-430.0,0.00023835,4]
[361646335,1747661447756,-790.85,0.00023835,4]
[361646338,1747661447765,-872.28,0.00023835,4]
[361646339,1747661447774,-1475.46,0.00023835,4]
[361646342,1747661447784,-569.18,0.00023835,4]
[361646343,1747661447793,-1551.64,0.00023835,4]
[361646346,1747661447803,-831.40739042,0.00023835,4]
[361646348,1747661447813,-430.0,0.00023835,4]
[361646349,1747661447822,-1852.26,0.00023835,4]
[361646351,1747661447831,-450.0,0.00023835,4]
[361646353,1747661447841,-450.0,0.00023835,4]
[361646356,1747661447851,-663.84,0.00023835,4]
[361646358,1747661447860,-400.0,0.00023835,4]
[361646359,1747661447869,-430.0,0.00023835,4]
[361646362,1747661447878,-430.0,0.00023835,4]
[361646364,1747661447887,-468.08,0.00023835,4]
[361646366,1747661447896,-450.0,0.00023835,4]
[361646368,1747661447906,-523.82,0.00023835,4]
[361646370,1747661447915,-450.0,0.00023835,4]
[361646372,1747661447924,-450.0,0.00023835,4]
[361646374,1747661447937,-430.0,0.00023835,4]
[361646376,1747661447946,-430.0,0.00023835,4]
[361646378,1747661447955,-430.0,0.00023835,4]
[361646380,1747661447964,-400.0,0.00023835,4]
[361646382,1747661447973,-400.0,0.00023835,4]
[361646384,1747661447984,-907.17,0.00023835,4]
[361646386,1747661447996,-430.0,0.00023835,4]
[361646388,1747661448006,-430.0,0.00023835,4]
[361646390,1747661448016,-430.0,0.00023835,4]
[361646392,1747661448027,-430.0,0.00023835,4]
[361646394,1747661448037,-430.0,0.00023835,4]
[361646396,1747661448046,-430.0,0.00023835,4]
[361646398,1747661448056,-1046.07,0.00023835,4]
[361646400,1747661448065,-451.57175977,0.00023835,4]
[361646402,1747661448075,-430.0,0.00023835,4]
[361646404,1747661448085,-430.0,0.00023835,4]
[361646406,1747661448094,-430.0,0.00023835,4]
[361646408,1747661448104,-430.0,0.00023835,4]
[361646410,1747661448114,-400.0,0.00023835,4]
[361646412,1747661448124,-270.62942797,0.00023835,4]
[361646414,1747661448133,-466.85,0.00023835,4]
[361646417,1747661448143,-583.43,0.00023835,4]
[361646419,1747661448153,-400.51515639,0.00023835,4]
[361646421,1747661448162,-370.0,0.00023835,4]
[361646423,1747661448172,-430.0,0.00023835,4]
[361646425,1747661448182,-430.0,0.00023835,4]
[361646427,1747661448192,-400.0,0.00023835,4]
[361646429,1747661448202,-400.58774058,0.00023835,4]
[361646431,1747661448211,-451.46244667,0.00023835,4]
[361646433,1747661448221,-450.0,0.00023835,4]
[361646435,1747661448231,-430.0,0.00023835,4]
[361646437,1747661448243,-450.0,0.00023835,4]
[361646439,1747661448253,-314.52545903,0.00023835,4]
[361646441,1747661448262,-404.03371887,0.00023835,4]
[361646443,1747661448271,-431.86,0.00023835,4]
[361646445,1747661448281,-400.0,0.00023835,4]
[361646447,1747661448291,-450.0,0.00023835,4]
[361646449,1747661448301,-430.0,0.00023835,4]
[361646451,1747661448311,-450.0,0.00023835,4]
[361646453,1747661448322,-450.0,0.00023835,4]
[361646455,1747661448332,-1352.69,0.00023835,4]
[361646457,1747661448342,-430.0,0.00023835,4]
[361646459,1747661448351,-2459.11,0.00023835,4]
[361646461,1747661448361,-450.0,0.00023835,4]
[361646463,1747661448370,-450.0,0.00023835,4]
[361646465,1747661448379,-430.0,0.00023835,4]
[361646467,1747661448388,-430.0,0.00023835,4]
[361646469,1747661448398,-401.75445303,0.00023835,4]
[361646471,1747661448407,-430.0,0.00023835,4]
[361646473,1747661448417,-430.0,0.00023835,4]
[361646475,1747661448426,-430.0,0.00023835,4]
[361646477,1747661448436,-560.63420505,0.00023838,2]
[361646479,1747661448445,-161106.384854,0.00023839,2]
[361646481,1747661448455,-151.0,0.00023839,7]
[361646483,1747661448464,-151.0,0.00023839,7]
[361646485,1747661448473,-151.0,0.00023839,7]
[361646487,1747661448483,-151.384668,0.00023839,7]
[361646489,1747661448495,-151.0,0.00023839,7]
[361646491,1747661448505,-252.6873,0.00023839,7]
[361646493,1747661448515,-151.0,0.00023839,7]
[361646495,1747661448525,-151.0,0.00023839,7]
[361646497,1747661448534,-151.0,0.00023839,7]
[361646499,1747661448544,-151.0,0.00023839,7]
[361646501,1747661448553,-151.0,0.00023839,7]
[361646503,1747661448563,-153.902417,0.00023839,7]
[361646505,1747661448572,-151.0,0.00023839,7]
[361646507,1747661448583,-151.0,0.00023839,7]
[361646509,1747661448594,-151.0,0.00023839,7]
[361646511,1747661448606,-151.0,0.00023839,7]
[361646513,1747661448615,-151.0,0.00023839,7]
[361646515,1747661448626,-200.62835787,0.00023863,10]
[361646517,1747661448636,-560.63420505,0.00023872,2]
[361646519,1747661448646,-500.0,0.00023873,2]
[361646521,1747661448656,-500.98623273,0.00023873,2]
[361646523,1747661448665,-500.0,0.00023873,2]
[361646525,1747661448676,-500.0,0.00023873,2]
[361646527,1747661448685,-500.0,0.00023873,2]
[361646529,1747661448696,-500.0,0.00023873,2]
[361646531,1747661448706,-500.0,0.00023873,2]
[361646533,1747661448715,-500.0,0.00023873,2]
[361646535,1747661448725,-500.0,0.00023873,2]
[361646537,1747661448734,-500.0,0.00023873,2]
[361646539,1747661448748,-501.01105347,0.00023873,2]
[361646541,1747661448758,-502.80858105,0.00023873,2]
[361646543,1747661448768,-500.0,0.00023873,2]
[361646545,1747661448777,-509.40855306,0.00023873,2]
[361646547,1747661448787,-500.0,0.00023873,2]
[361646549,1747661448797,-500.0,0.00023873,2]
[361646551,1747661448807,-513.36852457,0.00023873,2]
[361646553,1747661448817,-500.0,0.00023873,2]
[361646556,1747661448828,-503.63586101,0.00023873,2]
[361646558,1747661448837,-1197.65,0.000239,7]
[361646560,1747661448848,-444.54243294,0.000239,2]
[361646562,1747661448857,-500.0,0.0002397,4]
[361646564,1747661448867,-500.0,0.0002397,4]
[361646566,1747661448876,-500.0,0.00023971,4]
[361646568,1747661448886,-500.0,0.00023971,4]
[361646570,1747661448896,-500.0,0.00023971,4]
[361646572,1747661448906,-500.0,0.00023971,4]
[361646573,1747661448916,-500.0,0.00023971,4]
[361646576,1747661448926,-500.0,0.00023971,4]
[361646577,1747661448937,-500.0,0.00023971,4]
[361646580,1747661448951,-500.0,0.00023971,4]
[361646582,1747661448960,-500.0,0.00023971,4]
[361646584,1747661448969,-500.0,0.00023971,4]
[361646586,1747661448980,-500.0,0.00023971,4]
[361646588,1747661448993,-500.0,0.00023971,4]
[361646590,1747661449004,-430.0,0.00023972,4]
[361646592,1747661449016,-340.0,0.00023972,4]
[361646594,1747661449027,-430.0,0.00023972,4]
[361646596,1747661449037,-156.13582771,0.00023972,4]
[361646598,1747661449047,-151.15899724,0.00023972,4]
[361646600,1747661449058,-430.0,0.00023972,4]
[361646602,1747661449068,-430.0,0.00023972,4]
[361646604,1747661449078,-420.0,0.00023972,4]
[361646606,1747661449088,-257.59552275,0.00023972,4]
[361646608,1747661449099,-430.0,0.00023972,4]
[361646610,1747661449109,-430.0,0.00023972,4]
[361646612,1747661449119,-430.0,0.00023972,4]
[361646614,1747661449130,-376.14367649,0.00023972,4]
[361646616,1747661449140,-373.93995056,0.00023972,4]
[361646617,1747661449150,-372.37498567,0.00023972,4]
[361646619,1747661449160,-430.0,0.00023972,4]
[361646622,1747661449170,-430.0,0.00023972,4]
[361646624,1747661449182,-372.45328149,0.00023972,4]
[361646626,1747661449194,-430.0,0.00023972,4]
[361646628,1747661449204,-430.0,0.00023972,4]
[361646629,1747661449215,-430.0,0.00023972,4]
[361646631,1747661449226,-430.0,0.00023972,4]
[361646633,1747661449238,-430.0,0.00023972,4]
[361646635,1747661449258,-430.0,0.00023972,4]
[361646637,1747661449269,-430.0,0.00023972,4]
[361646639,1747661449280,-500.0,0.00023972,2]
[361646642,1747661449291,-430.0,0.00023972,4]
[361646644,1747661449302,-420.0,0.00023972,4]
[361646646,1747661449313,-430.0,0.00023972,4]
[361646648,1747661449323,-430.0,0.00023972,4]
[361646649,1747661449334,-430.0,0.00023972,4]
[361646652,1747661449345,-240.0,0.00023972,4]
[361646654,1747661449356,-151.0,0.00023972,7]
[361646656,1747661449367,-430.0,0.00023972,4]
[361646658,1747661449378,-430.0,0.00023972,4]
[361646660,1747661449390,-240.0,0.00023972,4]
[361646661,1747661449400,-430.0,0.00023972,4]
[361646663,1747661449411,-240.0,0.00023972,4]
[361646665,1747661449422,-430.0,0.00023972,4]
[361646667,1747661449432,-430.0,0.00023972,4]
[361646669,1747661449442,-430.0,0.00023972,4]
[361646671,1747661449453,-430.0,0.00023972,4]
[361646673,1747661449463,-430.0,0.00023972,4]
[361646675,1747661449473,-364.16,0.00023972,4]
[361646677,1747661449483,-194.14050957,0.00023972,4]
[361646679,1747661449498,-430.0,0.00023972,4]
[361646681,1747661449508,-430.0,0.00023972,4]
[361646683,1747661449519,-430.0,0.00023972,4]
[361646685,1747661449529,-430.0,0.00023972,4]
[361646687,1747661449539,-430.0,0.00023972,4]
[361646689,1747661449550,-558.91,0.00023972,4]
[361646691,1747661449560,-309.97,0.00023972,4]
[361646693,1747661449569,-430.0,0.00023972,4]
[361646695,1747661449579,-669.94,0.00023972,4]
[361646697,1747661449588,-151.0,0.00023972,7]
[361646699,1747661449598,-552.60264992,0.00023972,4]
[361646701,1747661449607,-430.0,0.00023972,4]
[361646703,1747661449617,-430.0,0.00023972,4]
[361646705,1747661449628,-430.0,0.00023972,4]
[361646707,1747661449640,-273.56291942,0.00023972,4]
[361646709,1747661449649,-536.90425767,0.00023972,4]
[361646711,1747661449659,-770.93,0.00023972,4]
[361646714,1747661449669,-268.87737622,0.00023972,4]
[361646716,1747661449679,-430.0,0.00023972,4]
[361646718,1747661449688,-430.0,0.00023972,4]
[361646719,1747661449697,-430.0,0.00023972,4]
[361646721,1747661449706,-240.0,0.00023972,4]
[361646723,1747661449716,-430.0,0.00023972,4]
[361646726,1747661449726,-430.0,0.00023972,4]
[361646728,1747661449736,-430.0,0.00023972,4]
[361646730,1747661449750,-240.0,0.00023972,4]
[361646732,1747661449760,-430.0,0.00023972,4]
[361646734,1747661449769,-420.0,0.00023972,4]
[361646736,1747661449779,-151.0,0.00023972,7]
[361646737,1747661449788,-212.46162563,0.00023972,4]
[361646739,1747661449798,-370.0,0.00023972,4]
[361646741,1747661449808,-540.0,0.00023972,4]
[361646743,1747661449817,-430.0,0.00023972,4]
[361646745,1747661449826,-430.0,0.00023972,4]
[361646748,1747661449837,-430.0,0.00023972,4]
[361646750,1747661449846,-151.0,0.00023972,7]
[361646752,1747661449855,-228.780518,0.00023972,7]
[361646753,1747661449864,-280.28101671,0.00023972,4]
[361646755,1747661449874,-430.0,0.00023972,4]
[361646757,1747661449883,-430.0,0.00023972,4]
[361646759,1747661449892,-340.0,0.00023972,4]
[361646762,1747661449902,-463.22,0.00023972,4]
[361646764,1747661449912,-1789.02,0.00023972,4]
[361646766,1747661449921,-430.0,0.00023972,4]
[361646768,1747661449932,-430.0,0.00023972,4]
[361646770,1747661449944,-470.0,0.00023972,4]
[361646772,1747661449954,-683.8996659,0.00023972,4]
[361646775,1747661449972,-428.2703341,0.00023972,4]
[361646777,1747661449982,-430.0,0.00023972,4]
[361646779,1747661449991,-430.0,0.00023972,4]
[361646781,1747661450004,-430.0,0.00023972,2]
[361646783,1747661450014,-430.0,0.00023972,4]
[361646785,1747661450025,-430.0,0.00023972,4]
[361646787,1747661450034,-258.55,0.00023972,4]
[361646789,1747661450044,-151.0,0.00023972,7]
[361646791,1747661450053,-430.0,0.00023972,4]
[361646793,1747661450062,-671.63,0.00023972,4]
[361646795,1747661450072,-471.81,0.00023972,4]
[361646797,1747661450081,-430.0,0.00023972,4]
[361646799,1747661450091,-497.42200874,0.00023972,4]
[361646801,1747661450101,-547.61,0.00023972,4]
[361646803,1747661450111,-430.0,0.00023972,4]
[361646805,1747661450121,-445.05,0.00023972,4]
[361646807,1747661450132,-470.0,0.00023972,4]
[361646809,1747661450142,-431.93181415,0.00023972,4]
[361646811,1747661450151,-707.42,0.00023972,4]
[361646823,1747661450263,-430.0,0.00023972,4]
[361646825,1747661450273,-430.0,0.00023972,4]
[361646827,1747661450283,-420.0,0.00023972,4]
[361646829,1747661450293,-694.29,0.00023972,4]
[361646832,1747661450302,-430.0,0.00023972,4]
[361646834,1747661450313,-430.0,0.00023972,4]
[361646836,1747661450322,-430.0,0.00023972,4]
[361646838,1747661450332,-430.0,0.00023972,4]
[361646840,1747661450342,-430.0,0.00023972,4]
[361646842,1747661450351,-4600.11,0.00023972,4]
[361646844,1747661450361,-4376.8,0.00023972,4]
[361646846,1747661450370,-420.0,0.00023972,4]
[361646848,1747661450380,-430.0,0.00023972,4]
[361646850,1747661450389,-371.42132255,0.00023972,4]
[361646852,1747661450398,-575.56333471,0.00023972,4]
[361646854,1747661450409,-430.0,0.00023972,4]
[361646856,1747661450419,-1270.04,0.00023972,4]
[361646858,1747661450428,-430.0,0.00023972,4]
[361646860,1747661450437,-470.0,0.00023972,4]
[361646862,1747661450447,-430.0,0.00023972,4]
[361646864,1747661450456,-961.24,0.00023972,4]
[361646866,1747661450466,-2801.27,0.00023972,4]
[361646868,1747661450476,-430.0,0.00023972,4]
[361646870,1747661450486,-430.0,0.00023972,4]
[361646872,1747661450499,-330.53800295,0.00023972,4]
[361646874,1747661450508,-1351.03,0.00023972,4]
[361646875,1747661450518,-430.0,0.00023972,4]
[361646876,1747661450527,-430.0,0.00023972,4]
[361646877,1747661450536,-760.53923922,0.00023972,4]
[361646878,1747661450677,-760.5681981,0.00023835,4]
[361646879,1747661450699,-143.0018019,0.00023835,4]
[361646880,1747661450711,-400.27076078,0.00023972,4]
[361646881,1747661450721,-2093.67,0.00023972,4]
[361646882,1747661450731,-465.37,0.00023972,4]
[361646883,1747661450742,-500.0,0.00023972,4]
[361646884,1747661450761,-430.0,0.00023972,4]
[361646885,1747661450771,-911.96,0.00023972,4]
[361646886,1747661450782,-151.0,0.00023972,7]
[361646887,1747661450793,-430.0,0.00023972,4]
[361646888,1747661450803,-430.0,0.00023972,4]
[361646889,1747661450814,-430.0,0.00023972,4]
[361646890,1747661450825,-809.22,0.00023972,4]
[361646891,1747661450836,-370.0,0.00023972,4]
[361646892,1747661450847,-430.0,0.00023972,4]
[361646893,1747661450859,-327.89427741,0.00023972,4]
[361646894,1747661450946,700.0,0.00027397,120]
[361646895,1747661451026,700.0,0.00027397,120]
[361646896,1747661451082,700.0,0.00027397,120]
[361646897,1747661451156,700.0,0.00027397,120]
[361646898,1747661451229,700.0,0.00027397,120]
[361646899,1747661451299,700.0,0.00027397,120]
[361646900,1747661451368,700.0,0.00027397,120]
[361646902,1747661451433,700.0,0.00027397,120]
[361646908,1747661451698,700.0,0.00027397,120]
[361646909,1747661451773,700.0,0.00027397,120]
[361646910,1747661451842,700.0,0.00027397,120]
[361646911,1747661451913,700.0,0.00027397,120]
[361646912,1747661451973,769.58964436,0.00027397,120]
[361646921,1747661486987,764.30306458,0.000273,120]
[361646924,1747661545564,160.0,0.00024842,30]
[361646925,1747661550305,1000.0,0.00024842,30]
[361646926,1747661550645,1000.0,0.00024842,30]
[361646927,1747661550842,200.0,0.00024618,120]
[361646928,1747661551049,1000.0,0.00024842,30]
[361646929,1747661551440,1000.0,0.00024842,30]
[361646930,1747661552008,1000.0,0.00024842,30]
[361646931,1747661552350,1319.376105,0.00024842,30]
[361646932,1747661610772,200.0,0.00026414,120]
[361646933,1747661617830,3039.11994206,0.00027397,120]
[361646934,1747661618569,414.30626332,0.00024842,30]
[361646935,1747661680411,499.999999,0.00024834,30]
[361646936,1747661716532,10000.0,0.00011,2]
[361646937,1747661739342,8117.0,0.00011,2]
[361646938,1747661856189,500.0,0.00024834,30]
[361646939,1747661856481,500.0,0.00024834,30]
[361646940,1747661856827,448.36869199,0.00024834,30]
[361646942,1747661982819,500.0,0.00024833,30]
[361646943,1747662039636,500.0,0.00024833,30]
[361646944,1747662063234,500.0,0.00024833,30]
[361646945,1747662088940,500.0,0.00024833,30]
[361646946,1747662110025,500.0,0.00024833,30]
[361646948,1747662158195,500.0,0.00024833,30]
[361646949,1747662176204,500.0,0.00024833,30]
[361646950,1747662202190,500.0,0.00024833,30]
[361646951,1747662220856,500.0,0.00024833,30]
[361646952,1747662225009,747.469321,0.00027397,120]
[361646953,1747662239296,500.0,0.00024833,30]
[361646954,1747662262031,500.0,0.00024833,30]
[361646957,1747662310451,500.0,0.00024833,30]
[361646958,1747662344439,500.0,0.00024833,30]
[361646959,1747662347381,400.63,0.00024833,30]
[361646960,1747662364959,500.0,0.00024833,30]
[361646963,1747662392884,500.0,0.00024833,30]
[361646964,1747662409342,500.0,0.00024833,30]
[361646985,1747662433344,500.0,0.00024833,30]
[361646986,1747662454547,500.0,0.00024833,30]
[361646988,1747662475047,500.0,0.00024833,30]
[361647035,1747662515050,500.0,0.00024833,30]
[361647136,1747662540361,500.0,0.00024833,30]
[361647199,1747662576387,500.0,0.00024833,30]
[361647204,1747662600509,500.0,0.00024833,30]
[361647217,1747662624652,500.0,0.00024833,30]
[361647257,1747662632082,-848.43912224,0.00013426,2]
[361647271,1747662637942,-4151.56087776,0.00013426,2]
[361647272,1747662637952,-163.483621,0.00013699,2]
[361647273,1747662637962,-209.95502173,0.000199,2]
[361647274,1747662637972,-300.0,0.00019999,2]
[361647275,1747662637982,-480.0,0.00019999,2]
[361647276,1747662637992,-200.0,0.0002,2]
[361647277,1747662638001,-200.0,0.0002,2]
[361647278,1747662638011,-200.0,0.0002,2]
[361647279,1747662638021,-664.06743958,0.0002,2]
[361647280,1747662638033,-536.9764501,0.0002,2]
[361647291,1747662640854,-41224.0,0.0002,2]
[361647299,1747662643087,-1804.39833891,0.0002,2]
[361647308,1747662648721,503.15259287,0.00024833,30]
[361647309,1747662666211,500.0,0.00024833,30]
[361647310,1747662683336,500.0,0.00024833,30]
[361647312,1747662719307,500.0,0.00024833,30]
[361647321,1747662742722,500.0,0.00024833,30]
[361647325,1747662749563,1000.0,0.00024833,30]
[361647326,1747662749980,1000.0,0.00024833,30]
[361647328,1747662750323,1931.636015,0.00024833,30]
[361647332,1747662763606,500.0,0.00024833,30]
[361647338,1747662782408,503.9491364,0.00024833,31]
[361647352,1747662815428,500.0,0.00024833,30]
[361647361,1747662836071,500.0,0.00024833,30]
[361647380,1747662885190,500.0,0.00024833,30]
[361647399,1747662933198,500.0,0.00024833,30]
[361647408,1747662957262,500.0,0.00024833,30]
[361647414,1747662974557,500.0,0.00024833,30]
[361647421,1747662993544,500.0,0.00024833,30]
[361647425,1747663010493,500.0,0.00024833,30]
[361647426,1747663028993,500.0,0.00024833,30]
[361647429,1747663051467,500.0,0.00024833,30]
[361647430,1747663097612,500.0,0.00024833,30]
[361647432,1747663115051,500.0,0.00024833,30]
[361647435,1747663131028,500.0,0.00024833,30]
[361647440,1747663152548,500.0,0.00024833,30]
[361647442,1747663189798,500.0,0.00024834,30]
[361647443,1747663206512,500.0,0.00024834,30]
[361647445,1747663231562,500.0,0.00024834,30]
[361647446,1747663260025,500.0,0.00024834,30]
[361647450,1747663277324,500.0,0.00024834,30]
[361647452,1747663294848,500.0,0.00024834,30]
[361647454,1747663314144,500.0,0.00024834,30]
[361647456,1747663341073,500.0,0.00024834,30]
[361647473,1747663365352,560.60199,0.00027397,120]
[361647475,1747663403869,375.0,0.00027397,120]
[361647479,1747663440321,373.67477059,0.00027397,120]
[361647507,1747663592609,500.0,0.00024834,30]
[361647510,1747663613305,500.0,0.00024834,30]
[361647513,1747663629616,500.0,0.00024834,30]
[361647515,1747663644585,500.0,0.00024834,30]
[361647516,1747663651988,2000.0,0.00027397,120]
[361647517,1747663674594,500.0,0.00024834,30]
[361647520,1747663693027,500.0,0.00024834,30]
[361647521,1747663712583,500.0,0.00024834,30]
[361647525,1747663729166,500.0,0.00024834,30]
[361647535,1747663786657,500.0,0.00024834,30]
[361647538,1747663803554,500.0,0.00024834,30]
[361647539,1747663820798,500.0,0.00024834,30]
[361647552,1747663832037,-855.4,0.00013562,2]
[361647555,1747663832159,-4144.6,0.00013562,2]
[361647556,1747663832169,-163.483621,0.00013699,2]
[361647557,1747663832178,-212.35735062,0.00019769,2]
[361647558,1747663832188,-201.89539892,0.000199,2]
[361647559,1747663832198,-652.61296533,0.00019964,2]
[361647560,1747663832207,-467.84869662,0.0002,2]
[361647561,1747663832217,-201.89539892,0.00020138,2]
[361647562,1747663832226,-201.89539892,0.00020376,3]
[361647563,1747663832236,-201.89539892,0.00020614,3]
[361647564,1747663832245,-201.89539892,0.00020852,4]
[361647565,1747663832255,-163.483621,0.00020951,2]
[361647566,1747663832264,-201.89539892,0.0002109,4]
[361647567,1747663832274,-1200.0,0.00021328,2]
[361647568,1747663832284,-201.89539892,0.00021329,5]
[361647569,1747663832294,-201.89539892,0.00021567,5]
[361647570,1747663832303,-210.231655,0.00021573,2]
[361647571,1747663832313,-300.0,0.00021671,2]
[361647572,1747663832322,-300.0,0.00021671,2]
[361647573,1747663832332,-300.0,0.00021671,2]
[361647574,1747663832342,-500.44020228,0.00021672,2]
[361647575,1747663832351,-481.78597622,0.00021672,2]
[361647576,1747663832361,-236.6790923,0.00021672,2]
[361647577,1747663832373,-500.0,0.00021672,2]
[361647578,1747663832383,-500.0,0.00021672,2]
[361647579,1747663832392,-500.0,0.00021672,2]
[361647580,1747663832401,-500.0,0.00021672,2]
[361647581,1747663832410,-430.93151875,0.00021672,2]
[361647582,1747663832419,-500.0,0.00021672,2]
[361647583,1747663832428,-395.80063923,0.00021672,2]